bitfinex-derivatives/quotes_ETHF0:USTF0_20250501
["timestamp","ask_amount","ask_price","bid_price","bid_amount"]
[1746130488638,3.95919885,1847.6,1847.5,1.08205]
[1746130489636,3.50954853,1847.6,1847.5,1.08205]
[1746130489840,3.95930358,1847.6,1847.5,1.08205]
[1746130492144,3.95956313,1847.6,1847.5,1.08205]
[1746130492342,3.95956313,1847.6,1847.5,7.43425]
[1746130492741,3.95970561,1847.6,1847.5,7.43425]
[1746130497744,3.95970561,1847.6,1847.5,10.89415]
[1746130498043,0.55840561,1847.6,1847.5,10.89415]
[1746130498942,3.71940561,1847.6,1847.5,10.89415]
[1746130503144,4.53120561,1847.6,1847.5,10.89415]
[1746130504441,1.37020561,1847.6,1847.5,10.89415]
[1746130504950,1.37020561,1847.6,1847.5,51.69415]
[1746130506644,1.5736,1847.7,1847.5,51.69415]
[1746130506645,3.135,1848.0,1847.9,1.08182]
[1746130506947,3.60487922,1848.1,1848.0,4.25946]
[1746130507140,7.00269847,1848.1,1848.0,4.25946]
[1746130507341,8.78112665,1848.1,1848.0,4.25946]
[1746130509450,8.78112665,1848.1,1848.0,7.63076]
[1746130510953,8.78112665,1848.1,1848.0,1.08176]
[1746130511144,18.07064665,1848.1,1847.9,4.8308]
[1746130511451,8.5911074,1848.1,1848.0,1.08176]
[1746130511957,13.5911074,1848.1,1848.0,41.88176]
[1746130512158,8.2078,1848.1,1848.0,1.08176]
[1746130512355,9.2895,1848.1,1848.0,1.08176]
[1746130512569,9.28951,1848.1,1848.0,1.08176]
[1746130513370,4.28951,1848.1,1848.0,1.08176]
[1746130513672,3.2078,1848.1,1848.0,1.08176]
[1746130516569,9.0458,1848.1,1848.0,1.08176]
[1746130517570,5.838,1848.1,1848.0,1.08176]
[1746130517772,5.838,1848.1,1848.0,4.24116]
[1746130518772,1.8484,1848.2,1848.1,1.0817]
[1746130519077,0.2691,1848.2,1848.1,12.4463]
[1746130519375,0.2691,1848.2,1848.1,17.4463]
[1746130519579,0.2691,1848.2,1848.1,12.4463]
[1746130519768,0.2691,1848.2,1848.1,8.7103]
[1746130520070,0.2691,1848.2,1848.1,11.4463]
[1746130520274,0.2691,1848.2,1848.1,11.7763]
[1746130520674,0.2691,1848.2,1848.1,12.4463]
[1746130521369,3.96842254,1848.4,1848.1,11.3646]
[1746130521567,3.96842254,1848.4,1848.3,3.2078]
[1746130521769,3.96842254,1848.4,1848.3,4.28938]
[1746130522070,3.96842254,1848.4,1848.3,10.63188]
[1746130522272,3.96842254,1848.4,1848.3,3.2078]
[1746130522471,3.96842254,1848.4,1848.3,4.28938]
[1746130522672,3.96842254,1848.4,1848.3,7.47088]
[1746130522968,0.8114,1848.5,1848.3,4.81654]
[1746130523174,0.8114,1848.5,1848.3,3.735]
[1746130523366,1.08152,1848.4,1848.3,3.735]
[1746130524173,5.1007,1848.5,1848.3,4.81658]
[1746130524576,1.08152,1848.4,1848.3,4.81658]
[1746130525180,5.10072,1848.5,1848.4,1.08152]
[1746130525382,10.93872,1848.5,1848.4,1.08152]
[1746130525583,7.73092,1848.5,1848.4,1.08152]
[1746130525776,10.93872,1848.5,1848.4,1.08152]
[1746130526171,15.93872,1848.5,1848.4,1.08152]
[1746130528187,19.34682,1848.5,1848.4,1.08152]
[1746130528386,14.34682,1848.5,1848.4,1.08152]
[1746130528686,1.08152,1848.4,1848.3,4.81658]
[1746130528987,3.4081,1848.4,1848.3,4.81658]
[1746130530183,4.48962,1848.4,1848.3,3.735]
[1746130530985,4.48962,1848.4,1848.3,4.81658]
[1746130531280,4.48962,1848.4,1848.3,3.735]
[1746130531481,4.48962,1848.4,1848.3,4.81658]
[1746130532689,4.48962,1848.4,1848.3,3.735]
[1746130534086,4.48962,1848.4,1848.3,4.81658]
[1746130534287,4.48962,1848.4,1848.3,3.735]
[1746130535086,4.48962,1848.4,1848.3,4.81658]
[1746130535286,3.4081,1848.4,1848.3,7.98598]
[1746130535487,10.93871,1848.5,1848.4,1.08152]
[1746130535688,10.93871,1848.5,1848.4,4.25092]
[1746130535886,14.26521,1848.5,1848.4,4.25092]
[1746130536088,14.26521,1848.5,1848.4,3.1694]
[1746130536288,14.26521,1848.5,1848.3,4.81656]
[1746130536289,1.08152,1848.4,1848.3,3.735]
[1746130536587,4.40802,1848.4,1848.3,3.735]
[1746130537096,10.24602,1848.4,1848.3,3.735]
[1746130537984,2.70423,1848.2,1848.0,3.735]
[1746130538191,10.6504,1848.1,1848.0,3.735]
[1746130538488,13.9374,1848.1,1848.0,3.735]
[1746130540989,7.5765,1848.1,1848.0,3.735]
[1746130541192,14.3609,1848.1,1848.0,3.735]
[1746130541383,14.3609,1848.1,1848.0,4.81676]
[1746130541585,14.3609,1848.1,1848.0,3.735]
[1746130542695,11.1531,1848.1,1848.0,3.735]
[1746130543094,1.08182,1847.9,1847.8,1.08183]
[1746130543293,1.08205,1847.5,1847.4,3.2078]
[1746130543494,1.08211,1847.4,1847.3,7.22681125]
[1746130543792,7.59741,1847.4,1847.3,7.22681125]
[1746130544796,7.59741,1847.4,1847.3,10.85222618]
[1746130545394,10.89681,1847.4,1847.3,10.85222618]
[1746130545889,19.94261,1847.4,1847.3,10.85222618]
[1746130546396,16.73481,1847.4,1847.3,11.93439618]
[1746130546596,16.73481,1847.4,1847.3,15.08119618]
[1746130547094,12.3533,1847.4,1847.3,15.08119618]
[1746130547297,5.838,1847.4,1847.3,20.08119618]
[1746130547794,5.838,1847.4,1847.3,15.08119618]
[1746130548796,4.28984,1847.6,1847.4,1.08207]
[1746130548994,4.28984,1847.6,1847.4,7.95387]
[1746130549297,3.2078,1847.6,1847.4,7.95387]
[1746130549593,4.28984,1847.6,1847.5,3.186]
[1746130549998,4.28984,1847.6,1847.5,4.26805]
[1746130550396,3.2672,1847.7,1847.6,1.08199]
[1746130550588,7.67171,1847.8,1847.6,7.59099]
[1746130550790,0.10824,1847.7,1847.6,11.05219]
[1746130550989,0.10824,1847.7,1847.6,7.86619]
[1746130551598,1.19017,1847.7,1847.6,7.86619]
[1746130551900,0.10824,1847.7,1847.6,7.86619]
[1746130552298,1.19017,1847.7,1847.6,7.86619]
[1746130552998,0.10824,1847.7,1847.6,12.86619]
[1746130553200,12.99344759,1848.1,1847.7,1.08189]
[1746130553201,1.08184,1847.9,1847.7,1.08189]
[1746130553402,1.08184,1847.9,1847.8,3.725]
[1746130553594,4.41606,1848.0,1847.8,3.725]
[1746130553794,4.41606,1848.0,1847.9,40.8]
[1746130553995,3.3343,1848.0,1847.9,40.8]
[1746130554296,5.838,1848.1,1847.9,1.08182]
[1746130554497,5.838,1848.1,1848.0,1.08176]
[1746130554803,11.69209,1848.2,1848.1,1.0817]
[1746130554804,10.6104,1848.2,1848.1,1.0817]
[1746130555294,11.69204,1848.2,1848.0,7.67491]
[1746130555500,1.0817,1848.1,1848.0,6.5932]
[1746130555698,1.0817,1848.1,1848.0,7.67496]
[1746130555897,3.1548,1848.1,1848.0,7.67496]
[1746130557003,4.2365,1848.1,1848.0,4.39266]
[1746130557300,4.2365,1848.1,1848.0,1.08176]
[1746130557697,1.08176,1848.0,1847.9,41.88179]
[1746130557900,3.1548,1848.0,1847.8,10.2885]
[1746130558100,4.23659,1848.0,1847.9,1.08182]
[1746130559395,1.08174,1848.1,1848.0,1.08176]
[1746130559896,4.51844,1848.1,1848.0,1.08176]
[1746130560602,10.35644,1848.1,1848.0,1.08176]
[1746130561706,9.2747,1848.1,1848.0,1.08176]
[1746130561893,5.838,1848.1,1848.0,1.08176]
[1746130562711,6.9197,1848.1,1848.0,1.08176]
[1746130563203,9.1184,1848.1,1847.8,7.64535]
[1746130563401,4.3622,1848.0,1847.9,3.725]
[1746130563703,4.3622,1848.0,1847.9,4.80682]
[1746130564100,7.02794,1848.1,1848.0,1.08176]
[1746130564698,5.94621,1848.1,1848.0,1.08176]
[1746130566499,0.10821,1848.1,1848.0,1.08176]
[1746130568805,0.10821,1848.1,1848.0,4.31766]
[1746130572107,9.0458,1848.6,1848.0,4.31766]
[1746130572108,7.15544759,1849.0,1848.7,1.08135]
[1746130572408,7.15544759,1849.0,1848.9,1.08123]
[1746130572801,7.15544759,1849.0,1848.9,45.13823]
[1746130573002,10.36324759,1849.0,1848.9,44.057]
[1746130573206,1.08123,1848.9,1848.8,54.306]
[1746130573410,1.08135,1848.7,1848.6,3.724]
[1746130573608,1.08145,1848.6,1848.4,1.08151]
[1746130573812,3.236,1848.6,1848.5,4.80547]
[1746130575311,4.31741,1848.6,1848.5,4.80547]
[1746130575911,7.46781,1848.6,1848.5,3.724]
[1746130576413,7.46781,1848.6,1848.5,4.80547]
[1746130576712,1.08151,1848.5,1848.4,1.0815]
[1746130576909,4.30581,1848.5,1848.4,4.7965]
[1746130577216,3.2243,1848.5,1848.4,4.7965]
[1746130578114,4.30577,1848.5,1848.4,4.7965]
[1746130580513,1.08158,1848.3,1848.2,50.3986]
[1746130580812,1.08158,1848.3,1848.2,3.715]
[1746130581206,1.08158,1848.3,1848.2,4.79664]
[1746130581207,6.4896,1848.3,1848.2,4.79664]
[1746130581614,7.57118,1848.3,1848.2,4.79664]
[1746130582512,7.57118,1848.3,1848.2,3.715]
[1746130582913,7.57118,1848.3,1848.2,4.79664]
[1746130585412,7.57118,1848.3,1848.2,8.09044]
[1746130589015,1.08155,1848.4,1848.3,1.08151]
[1746130589216,1.08155,1848.4,1848.3,7.44731]
[1746130589620,1.08158,1848.3,1848.2,4.7966]
[1746130589918,7.52178,1848.3,1848.2,4.7966]
[1746130591919,6.4402,1848.3,1848.2,4.7966]
[1746130592114,2.66156,1848.4,1848.3,1.08158]
[1746130592319,4.34806,1848.4,1848.3,1.08158]
[1746130592815,3.2665,1848.4,1848.3,1.08158]
[1746130593021,1.58,1848.5,1848.4,1.08152]
[1746130593319,6.7168,1848.6,1848.5,1.08147]
[1746130593519,6.7168,1848.6,1848.5,11.48907]
[1746130593711,3.4138,1848.6,1848.5,11.48907]
[1746130595019,4.9849,1848.7,1848.6,1.08141]
[1746130595318,7.77073,1848.8,1848.7,1.08135]
[1746130595515,9.9224,1848.8,1848.6,3.3504]
[1746130595719,11.00372,1848.8,1848.7,1.08135]
[1746130595921,12.58352,1848.8,1848.7,1.08135]
[1746130596221,1.08135,1848.7,1848.6,4.43176]
[1746130596422,4.45615,1848.7,1848.6,4.43176]
[1746130596718,3.3748,1848.7,1848.6,4.43176]
[1746130597221,4.45615,1848.7,1848.6,4.43176]
[1746130597717,3.3748,1848.7,1848.6,4.43176]
[1746130599217,4.8554,1848.8,1848.7,1.08135]
[1746130599521,3.2756,1848.8,1848.7,7.85705]
[1746130601821,4.35689,1848.8,1848.7,7.85705]
[1746130602217,7.54669,1848.8,1848.7,7.85705]
[1746130602417,6.4654,1848.8,1848.7,7.85705]
[1746130602622,7.54669,1848.8,1848.7,7.85705]
[1746130603123,9.31023,1848.9,1848.8,1.08129]
[1746130603319,3.47223,1848.9,1848.8,8.15009]
[1746130603525,5.08223,1848.9,1848.8,4.79629]
[1746130607630,5.08223,1848.9,1848.8,3.715]
[1746130608027,5.40661,1848.8,1848.1,7.2060739]
[1746130608229,5.40661,1848.8,1848.2,4.78858]
[1746130608230,1.08163,1848.3,1848.2,4.78858]
[1746130608425,4.28937,1848.4,1848.3,1.08158]
[1746130608626,1.08158,1848.3,1848.2,8.08819]
[1746130609331,4.45837,1848.4,1848.3,1.08158]
[1746130609532,4.45837,1848.4,1848.3,4.46588]
[1746130610435,4.45837,1848.4,1848.3,7.76548]
[1746130611836,1.08151,1848.5,1848.4,1.08148]
[1746130612036,1.08151,1848.5,1848.4,6.8641]
[1746130612235,1.08151,1848.5,1848.4,7.94562]
[1746130613034,1.08151,1848.5,1848.4,6.8641]
[1746130613432,1.08151,1848.5,1848.4,4.78852]
[1746130614741,1.08151,1848.5,1848.4,3.707]
[1746130615239,1.08151,1848.5,1848.4,4.78852]
[1746130617842,1.08151,1848.5,1848.4,3.707]
[1746130618828,1.08147,1848.5,1848.4,3.707]
[1746130619233,6.91947,1848.5,1848.4,3.707]
[1746130622135,6.91947,1848.5,1848.4,4.78852]
[1746130625040,10.48204792,1848.6,1848.5,1.08147]
[1746130625242,10.48204792,1848.6,1848.5,11.04267]
[1746130625636,9.67064792,1848.6,1848.5,11.04267]
[1746130625848,8.58918792,1848.6,1848.5,11.04267]
[1746130626343,9.67059792,1848.6,1848.5,11.04267]
[1746130626745,4.28921,1848.6,1848.5,11.04267]
[1746130629459,1.08141,1848.6,1848.5,11.04267]
[1746130630757,1.08164,1848.2,1848.1,7.2060739]
[1746130631059,4.28944,1848.2,1848.1,10.9130739]
[1746130631763,7.70074,1848.2,1848.1,10.9130739]
[1746130632062,7.70074,1848.2,1848.1,7.2060739]
[1746130632264,7.70074,1848.2,1848.1,10.9140739]
[1746130632859,10.90854,1848.2,1848.1,10.9140739]
[1746130633158,21.74654,1848.2,1848.1,7.2060739]
[1746130633365,21.85475,1848.2,1848.1,7.2060739]
[1746130634366,16.85475,1848.2,1848.1,7.2060739]
[1746130635267,1.08176,1848.0,1847.9,1.0818]
[1746130635460,1.08182,1847.9,1847.8,11.51814]
[1746130635661,4.23692,1847.9,1847.8,10.4363]
[1746130636162,4.23692,1847.9,1847.8,11.51818]
[1746130636559,4.23692,1847.9,1847.8,10.4363]
[1746130637769,4.23692,1847.9,1847.8,11.51818]
[1746130639067,4.23692,1847.9,1847.8,10.4363]
[1746130639961,4.23692,1847.9,1847.8,11.51818]
[1746130640665,4.23692,1847.9,1847.8,10.4363]
[1746130641061,4.23692,1847.9,1847.8,3.708]
[1746130641267,7.71982,1847.9,1847.8,3.708]
[1746130641969,8.53152,1847.9,1847.8,3.708]
[1746130645559,14.36952,1847.9,1847.8,3.708]
[1746130650264,1.08199,1847.6,1847.5,6.6206]
[1746130650463,1.08199,1847.6,1847.5,8.15955]
[1746130651871,7.59949,1847.6,1847.5,3.701]
[1746130652074,1.08223,1847.3,1847.2,1.08221]
[1746130652374,1.08223,1847.3,1847.2,7.97571]
[1746130652673,4.34153,1847.3,1847.2,6.8935]
[1746130652866,7.65123,1847.3,1847.2,6.8935]
[1746130653067,7.65123,1847.3,1847.2,7.97573]
[1746130653267,1.08223,1847.3,1847.2,7.97573]
[1746130654569,9.0402,1847.5,1847.3,1.08217]
[1746130654776,6.92005,1847.5,1847.4,4.40861]
[1746130655173,5.838,1847.5,1847.4,4.40861]
[1746130655681,5.838,1847.5,1847.4,7.59321]
[1746130657474,2.6646,1847.6,1847.5,1.08205]
[1746130657673,2.6646,1847.6,1847.5,11.56455]
[1746130658383,2.6646,1847.6,1847.5,7.86355]
[1746130658582,2.6646,1847.6,1847.5,11.56455]
[1746130660284,1.5826,1847.6,1847.5,11.56455]
[1746130660686,2.66459,1847.6,1847.5,11.56455]
[1746130661182,1.5826,1847.6,1847.5,11.56455]
[1746130662288,1.5826,1847.6,1847.5,14.77235]
[1746130664990,2.66459,1847.6,1847.5,11.56455]
[1746130665191,1.5826,1847.6,1847.5,11.56455]
[1746130665391,1.5826,1847.6,1847.5,14.77235]
[1746130665883,2.66459,1847.6,1847.5,11.56455]
[1746130666289,1.5826,1847.6,1847.5,11.56455]
[1746130667689,2.66459,1847.6,1847.5,11.56455]
[1746130667990,1.5826,1847.6,1847.5,11.56455]
[1746130668386,2.66459,1847.6,1847.5,11.56455]
[1746130668592,6.04579,1847.6,1847.5,11.56455]
[1746130669584,6.85759,1847.6,1847.5,8.23275]
[1746130669785,1.08205,1847.5,1847.4,3.1846]
[1746130670086,4.53645,1847.5,1847.4,6.8776]
[1746130670285,4.53645,1847.5,1847.4,7.95971]
[1746130670886,3.4544,1847.5,1847.4,11.20461]
[1746130672192,4.53645,1847.5,1847.4,11.20461]
[1746130672593,4.53645,1847.5,1847.4,7.95971]
[1746130673193,4.53645,1847.5,1847.4,4.77511]
[1746130673596,3.4544,1847.5,1847.4,4.77511]
[1746130673897,4.53645,1847.5,1847.4,4.77511]
[1746130674195,3.4544,1847.5,1847.4,8.18511]
[1746130674696,6.84084,1847.6,1847.5,1.08205]
[1746130674888,6.84084,1847.6,1847.5,4.27515]
[1746130675092,2.3944,1847.6,1847.5,4.27515]
[1746130681402,13.3072,1847.6,1847.2,7.2060739]
[1746130681699,1.08217,1847.3,1847.2,10.8990739]
[1746130681897,1.08217,1847.3,1847.2,11.9813039]
[1746130682101,11.09337,1847.3,1847.2,10.8990739]
[1746130682288,12.67677,1847.3,1847.2,11.9813039]
[1746130682707,12.67677,1847.3,1847.2,10.8990739]
[1746130683202,12.67677,1847.3,1847.2,11.9813039]
[1746130683404,12.67677,1847.3,1847.2,4.77523]
[1746130685402,13.48867,1847.3,1847.2,4.77523]
[1746130686599,12.4065,1847.3,1847.2,4.77523]
[1746130686798,13.48867,1847.3,1847.2,4.77523]
[1746130689415,2.3953,1847.3,1847.2,4.77523]
[1746130690014,11.59280573,1847.5,1847.4,1.08211]
[1746130690015,3.59212573,1847.5,1847.4,1.08211]
[1746130690713,3.59212573,1847.5,1847.4,4.37971]
[1746130691107,3.59212573,1847.5,1847.4,7.58751]
[1746130692622,3.7511,1847.6,1847.5,1.08205]
[1746130692807,3.7511,1847.6,1847.5,8.07265]
[1746130693215,4.83309,1847.6,1847.5,8.07265]
[1746130693418,3.7511,1847.6,1847.5,8.07265]
[1746130694117,4.83309,1847.6,1847.5,3.693]
[1746130694319,8.04089,1847.6,1847.5,3.693]
[1746130695219,4.83309,1847.6,1847.5,3.693]
[1746130695820,8.04089,1847.6,1847.5,3.693]
[1746130698422,11.9589,1847.6,1847.3,1.08213]
[1746130698622,6.786,1847.5,1847.4,3.684]
[1746130698815,7.86805,1847.5,1847.4,3.684]
[1746130699221,7.86805,1847.5,1847.4,4.76611]
[1746130701329,7.86805,1847.5,1847.4,3.684]
[1746130703230,1.08229,1847.1,1847.0,4.55471]
[1746130703425,1.08229,1847.1,1847.0,8.23871]
[1746130703728,1.08234,1847.0,1846.9,43.9797]
[1746130703922,1.08234,1847.0,1846.9,3.684]
[1746130704424,7.67464,1847.0,1846.9,4.7664]
[1746130704825,7.67464,1847.0,1846.9,11.254]
[1746130705526,4.26754,1847.0,1846.9,11.254]
[1746130706327,5.838,1847.1,1847.0,1.08234]
[1746130706533,6.92029,1847.1,1847.0,1.08234]
[1746130706735,6.92029,1847.1,1847.0,4.42694]
[1746130707222,1.08229,1847.1,1847.0,4.42694]
[1746130707626,4.42709,1847.1,1847.0,4.42694]
[1746130709535,4.42709,1847.1,1847.0,7.88054]
[1746130710536,3.3448,1847.1,1847.0,7.88054]
[1746130710837,4.42709,1847.1,1847.0,7.88054]
[1746130714634,3.3448,1847.1,1847.0,7.88054]
[1746130714835,4.42709,1847.1,1847.0,7.88054]
[1746130715339,3.3448,1847.1,1847.0,7.88054]
[1746130715540,4.42709,1847.1,1847.0,7.88054]
[1746130715746,3.3448,1847.1,1846.8,40.8]
[1746130715933,4.53244,1847.0,1846.9,4.7664]
[1746130716438,4.53244,1847.0,1846.9,1.0824]
[1746130716639,4.53244,1847.0,1846.9,3.684]
[1746130716937,3.4501,1847.0,1846.7,3.2078]
[1746130717139,1.08252,1846.7,1846.6,3.684]
[1746130717441,4.29032,1846.7,1846.6,3.684]
[1746130717738,11.02322,1846.7,1846.6,3.684]
[1746130718541,11.02322,1846.7,1846.5,58.8827039]
[1746130718542,1.08258,1846.6,1846.5,6.0903039]
[1746130718728,1.0827,1846.4,1846.3,14.17626974]
[1746130718927,1.0827,1846.4,1846.3,9.26242365]
[1746130718928,4.2905,1846.4,1846.3,9.26242365]
[1746130719132,9.2905,1846.4,1846.3,9.26242365]
[1746130721335,10.9146,1846.4,1846.0,8.08523]
[1746130721539,1.08287,1846.1,1846.0,8.08523]
[1746130722034,4.30337,1846.1,1846.0,8.08523]
[1746130724134,3.2205,1846.1,1846.0,8.08523]
[1746130724338,1.08285,1846.2,1846.1,1.08287]
[1746130724537,4.39945,1846.2,1846.1,4.34267]
[1746130724839,1.08285,1846.2,1846.1,4.34267]
[1746130725033,1.08285,1846.2,1846.1,7.51217]
[1746130725340,4.33429,1846.3,1846.2,1.08281]
[1746130725541,1.08279,1846.3,1846.2,4.34261]
[1746130725841,1.08279,1846.3,1846.2,7.58201]
[1746130726137,4.29054,1846.4,1846.3,1.08275]
[1746130726343,4.29054,1846.4,1846.3,4.76875]
[1746130726644,4.29054,1846.4,1846.3,8.01535]
[1746130728347,1.61898,1846.5,1846.4,1.0827]
[1746130728540,1.61898,1846.5,1846.4,7.4923]
[1746130730441,0.5363,1846.5,1846.4,7.4923]
[1746130730744,1.61894,1846.5,1846.4,7.4923]
[1746130730941,0.5363,1846.5,1846.4,7.4923]
[1746130732746,0.5363,1846.5,1846.4,12.4923]
[1746130733444,0.5363,1846.5,1846.4,7.4923]
[1746130733935,1.61894,1846.5,1846.4,11.1683]
[1746130734139,5.10574,1846.5,1846.4,11.1683]
[1746130734546,8.60944,1846.5,1846.4,11.1683]
[1746130734746,8.60944,1846.5,1846.4,3.676]
[1746130734945,1.08275,1846.3,1846.2,6.4472]
[1746130735247,1.08275,1846.3,1846.2,11.20601]
[1746130736746,4.0232,1846.4,1846.2,11.20601]
[1746130736747,5.10594,1846.4,1846.3,1.08275]
[1746130739452,5.1059,1846.4,1846.3,4.43705]
[1746130739750,5.1059,1846.4,1846.3,7.78165]
[1746130740454,4.0232,1846.4,1846.3,7.78165]
[1746130740660,0.5364,1846.4,1846.3,7.78165]
[1746130742854,0.5364,1846.4,1846.3,12.78165]
[1746130746953,6.6842,1846.9,1846.8,1.08246]
[1746130747155,6.6842,1846.9,1846.8,4.75846]
[1746130747354,4.39979,1847.0,1846.9,1.0824]
[1746130747550,4.39979,1847.0,1846.9,4.5117]
[1746130748051,3.3174,1847.0,1846.9,4.5117]
[1746130748354,7.55889,1847.1,1847.0,1.08234]
[1746130748561,10.84439,1847.1,1847.0,7.83764]
[1746130749255,10.84439,1847.1,1847.0,1.08234]
[1746130749955,7.63659,1847.1,1847.0,1.08234]
[1746130752756,6.5543,1847.1,1847.0,1.08234]
[1746130753558,7.63659,1847.1,1847.0,1.08234]
[1746130754055,3.59212573,1847.4,1847.3,1.08217]
[1746130754255,3.59212573,1847.4,1847.3,4.75817]
[1746130754453,3.59212573,1847.4,1847.3,51.55817]
[1746130754959,3.59212573,1847.4,1847.3,54.81257]
[1746130755559,5.38138792,1847.5,1847.4,1.08211]
[1746130755755,5.38138792,1847.5,1847.4,7.54431]
[1746130756157,5.38138792,1847.5,1847.4,48.34431]
[1746130756355,5.38138792,1847.5,1847.4,45.55711]
[1746130756557,8.57938792,1847.5,1847.4,45.55711]
[1746130757550,3.198,1847.5,1847.4,45.55711]
[1746130757860,4.28005,1847.5,1847.4,45.55711]
[1746130759066,3.198,1847.5,1847.4,45.55711]
[1746130759256,4.28005,1847.5,1847.4,45.55711]
[1746130760667,4.28005,1847.5,1847.4,44.475]
[1746130761066,4.28005,1847.5,1847.4,4.75711]
[1746130763559,4.28005,1847.5,1847.3,3.665]
[1746130763560,6.4058,1847.5,1847.3,3.665]
[1746130763764,3.2578,1847.4,1847.3,4.74717]
[1746130764365,3.2578,1847.4,1847.3,8.24467]
[1746130764566,3.2578,1847.4,1847.3,15.00877]
[1746130765866,3.401,1847.6,1847.5,1.08205]
[1746130766067,7.74079,1847.6,1847.5,1.08205]
[1746130766265,1.08205,1847.5,1847.4,1.08205]
[1746130766469,3.2967,1847.5,1847.4,1.08205]
[1746130766667,3.2967,1847.5,1847.4,4.25935]
[1746130767167,3.2078,1847.9,1847.4,9.09033]
[1746130767366,3.2078,1847.9,1847.8,1.08185]
[1746130767367,4.28963,1847.9,1847.8,1.08185]
[1746130767670,4.28963,1847.9,1847.8,4.74685]
[1746130767861,7.58633,1847.9,1847.8,3.665]
[1746130769269,12.58633,1847.9,1847.8,3.665]
[1746130771467,7.58633,1847.9,1847.8,3.665]
[1746130772367,7.58633,1847.9,1847.8,4.74688]
[1746130773375,7.58633,1847.9,1847.8,7.0937]
[1746130773673,7.58633,1847.9,1847.8,8.17558]
[1746130775174,7.58633,1847.9,1847.8,3.665]
[1746130775375,7.58633,1847.9,1847.8,4.74688]
[1746130776070,7.58633,1847.9,1847.8,8.06878]
[1746130776676,6.6562,1848.0,1847.9,1.08182]
[1746130776877,7.73796,1848.0,1847.9,1.08182]
[1746130777173,7.73796,1848.0,1847.9,4.40372]
[1746130778373,6.6562,1848.0,1847.9,4.40372]
[1746130779773,0.10821,1848.2,1847.9,14.28969]
[1746130779975,0.10821,1848.2,1848.1,1.0817]
[1746130780181,0.10821,1848.2,1848.1,4.7457]
[1746130780378,0.10821,1848.2,1848.1,48.7254]
[1746130781375,3.2078,1848.3,1848.2,1.08164]
[1746130781679,3.2078,1848.3,1848.2,4.41194]
[1746130783178,8.67608792,1848.5,1848.4,1.08152]
[1746130783380,5.38138792,1848.5,1848.4,4.74552]
[1746130783582,7.73115,1848.6,1848.5,1.08147]
[1746130783877,7.73115,1848.6,1848.5,7.91447]
[1746130784181,7.73115,1848.6,1848.5,6.833]
[1746130784681,7.73115,1848.6,1848.5,7.91447]
[1746130784879,7.73115,1848.6,1848.5,6.833]
[1746130785671,11.14755,1848.6,1848.5,7.91447]
[1746130790288,10.0661,1848.6,1848.5,7.91447]
[1746130790485,7.86831,1848.6,1848.5,7.91447]
[1746130795496,1.08147,1848.5,1848.4,4.74548]
[1746130795696,7.74227,1848.5,1848.4,4.74548]
[1746130796398,1.08152,1848.4,1848.3,40.8]
[1746130796696,4.57312,1848.4,1848.3,3.656]
[1746130797496,7.78092,1848.4,1848.3,3.656]
[1746130797898,2.70442,1848.0,1847.8,3.656]
[1746130798100,2.70493,1847.7,1847.5,3.656]
[1746130798301,1.08211,1847.4,1847.3,10.76818991]
[1746130798491,1.08211,1847.4,1847.3,14.42418991]
[1746130798999,4.57371,1847.4,1847.3,15.50635991]
[1746130799199,3.4916,1847.4,1847.3,15.50635991]
[1746130799404,3.4916,1847.4,1847.3,4.73817]
[1746130799698,4.57371,1847.4,1847.3,4.73817]
[1746130801597,3.4769,1847.5,1847.4,1.08211]
[1746130801901,9.0458,1847.7,1847.6,1.08199]
[1746130801902,6.91997,1847.7,1847.6,1.08199]
[1746130802204,10.23917,1847.7,1847.6,4.73799]
[1746130803999,4.40117,1847.7,1847.6,4.73799]
[1746130807399,3.3192,1847.7,1847.6,4.73799]
[1746130807795,15.55,1847.9,1847.8,1.08188]
[1746130808002,3.4682,1848.0,1847.9,1.08182]
[1746130808207,4.54996,1848.0,1847.9,4.73882]
[1746130809101,4.54996,1848.0,1847.9,8.16942]
[1746130809302,3.4682,1848.0,1847.9,8.16942]
[1746130809708,4.54996,1848.0,1847.9,8.16942]
[1746130810102,1.08176,1848.0,1847.9,8.16942]
[1746130810303,4.36546,1848.1,1848.0,1.08176]
[1746130810502,4.54809,1848.2,1848.1,1.0817]
[1746130810703,7.77469,1848.2,1848.1,1.0817]
[1746130811814,1.08176,1848.0,1847.9,3.657]
[1746130812508,4.32626,1848.0,1847.9,3.657]
[1746130813904,4.32626,1848.0,1847.9,4.73882]
[1746130814109,4.32626,1848.0,1847.9,3.657]
[1746130814311,4.32626,1848.0,1847.9,4.73882]
[1746130814808,4.32626,1848.0,1847.9,3.657]
[1746130815013,1.08176,1848.0,1847.9,3.657]
[1746130815313,1.08176,1848.0,1847.9,11.52452]
[1746130816218,4.26956,1848.0,1847.9,3.657]
[1746130816415,4.26956,1848.0,1847.7,4.73785]
[1746130816416,1.08193,1847.8,1847.7,4.73785]
[1746130816615,1.08186,1847.9,1847.8,1.08182]
[1746130816817,1.08186,1847.9,1847.8,7.81392]
[1746130819015,1.08186,1847.9,1847.8,3.4234]
[1746130819210,1.08186,1847.9,1847.8,4.50528]
[1746130821119,1.08186,1847.9,1847.8,3.4234]
[1746130821415,3.1878,1848.0,1847.7,4.7379]